[Event "*** Titled Tuesday Blitz"]
[Site "Chess.com"]
[Date "2019.07.02"]
[Round "4"]
[White "Oleksandr_Bortnyk"]
[Black "Angry_Twin"]
[Result "1-0"]
[WhiteElo "2947"]
[BlackElo "2803"]
[TimeControl "180+2"]
[EndTime "13:52:22 PDT"]
[Termination "Oleksandr_Bortnyk won by resignation"]

1. e4 {[%clk 0:03:01.9]} 1... c5 {[%clk 0:03:01]} 2. Nf3 {[%clk 0:02:59.9]} 2...
d6 {[%clk 0:03:02.5]} 3. Bc4 {[%clk 0:02:59.7]} 3... Nf6 {[%clk 0:03:03.1]} 4.
d3 {[%clk 0:02:59.9]} 4... e6 {[%clk 0:03:04.1]} 5. O-O {[%clk 0:03:00.3]} 5...
Be7 {[%clk 0:03:05.7]} 6. c3 {[%clk 0:03:01.7]} 6... O-O {[%clk 0:03:07.2]} 7.
Bb3 {[%clk 0:03:03.1]} 7... Nc6 {[%clk 0:03:08.4]} 8. h3 {[%clk 0:03:04.6]} 8...
b5 {[%clk 0:03:09.4]} 9. Re1 {[%clk 0:03:05.4]} 9... a5 {[%clk 0:03:10.3]} 10.
d4 {[%clk 0:03:06]} 10... d5 {[%clk 0:03:07.9]} 11. e5 {[%clk 0:02:59.7]} 11...
Ne4 {[%clk 0:03:08.6]} 12. Nbd2 {[%clk 0:02:59.2]} 12... cxd4 {[%clk 0:03:05.8]}
13. cxd4 {[%clk 0:02:47.3]} 13... Nxd2 {[%clk 0:03:05.8]} 14. Bxd2 {[%clk
0:02:46.5]} 14... Qb6 {[%clk 0:03:00.4]} 15. Be3 {[%clk 0:02:35.1]} 15... a4
{[%clk 0:02:35.2]} 16. Bc2 {[%clk 0:02:35.9]} 16... a3 {[%clk 0:02:36.5]} 17. b3
{[%clk 0:02:22.2]} 17... Bd7 {[%clk 0:02:29.3]} 18. Rc1 {[%clk 0:01:56.9]} 18...
Rfc8 {[%clk 0:02:26.4]} 19. Qd3 {[%clk 0:01:46.7]} 19... g6 {[%clk 0:02:27.2]}
20. Bb1 {[%clk 0:01:44.1]} 20... Nb4 {[%clk 0:02:20.4]} 21. Qd2 {[%clk
0:01:44.8]} 21... Rxc1 {[%clk 0:02:06]} 22. Rxc1 {[%clk 0:01:46.7]} 22... Rc8
{[%clk 0:02:06.6]} 23. h4 {[%clk 0:01:38.3]} 23... h5 {[%clk 0:01:35.8]} 24. Rf1
{[%clk 0:01:03.9]} 24... Be8 {[%clk 0:01:28.5]} 25. Bg5 {[%clk 0:01:01.1]} 25...
Bf8 {[%clk 0:01:27.3]} 26. Bf6 {[%clk 0:00:58.6]} 26... Qc6 {[%clk 0:01:25.5]}
27. g4 {[%clk 0:00:50.5]} 27... Qc3 {[%clk 0:01:25.2]} 28. Qf4 {[%clk
0:00:48.5]} 28... Nd3 {[%clk 0:01:24.9]} 29. Qg5 {[%clk 0:00:39.5]} 29... Nc1
{[%clk 0:01:11.8]} 30. Kg2 {[%clk 0:00:36.3]} 30... hxg4 {[%clk 0:01:03.3]} 31.
Qxg4 {[%clk 0:00:38.2]} 31... Bg7 {[%clk 0:00:36.5]} 32. h5 {[%clk 0:00:32.3]}
32... Qb2 {[%clk 0:00:25.9]} 33. hxg6 {[%clk 0:00:30]} 33... Bxf6 {[%clk
0:00:24.8]} 34. gxf7+ {[%clk 0:00:29.2]} 34... Kxf7 {[%clk 0:00:26.3]} 35. exf6
{[%clk 0:00:23.7]} 35... Kxf6 {[%clk 0:00:19]} 36. Qg5+ {[%clk 0:00:24.7]} 36...
Kf7 {[%clk 0:00:20.5]} 37. Ne5+ {[%clk 0:00:26.1]} 37... Kf8 {[%clk 0:00:21.5]}
38. Qf6+ {[%clk 0:00:27.6]} 38... Kg8 {[%clk 0:00:23]} 39. Bh7+ {[%clk
0:00:28.7]} 39... Kxh7 {[%clk 0:00:24]} 40. Rh1+ {[%clk 0:00:30.6]} 1-0

[Event "*** Titled Tuesday Blitz"]
[Site "Chess.com"]
[Date "2019.07.02"]
[Round "4"]
[White "tigra"]
[Black "theblitzchamp"]
[Result "1-0"]
[WhiteElo "2760"]
[BlackElo "2637"]
[TimeControl "180+2"]
[EndTime "13:52:22 PDT"]
[Termination "tigra won by checkmate"]

1. e4 {[%clk 0:02:54.7]} 1... e5 {[%clk 0:02:59]} 2. f4 {[%clk 0:02:55.4]} 2...
exf4 {[%clk 0:02:57.7]} 3. Bc4 {[%clk 0:02:56.2]} 3... Nc6 {[%clk 0:02:53.6]} 4.
Nc3 {[%clk 0:02:54.4]} 4... Qh4+ {[%clk 0:02:18.6]} 5. Ke2 {[%clk 0:02:55]} 5...
Bc5 {[%clk 0:02:16.4]} 6. Qf1 {[%clk 0:02:53.1]} 6... Nf6 {[%clk 0:02:11.9]} 7.
Nf3 {[%clk 0:02:53.3]} 7... Qh5 {[%clk 0:02:12.1]} 8. d3 {[%clk 0:02:54.4]} 8...
d6 {[%clk 0:02:07]} 9. Bxf4 {[%clk 0:02:54.4]} 9... Bg4 {[%clk 0:02:06.4]} 10.
Kd2 {[%clk 0:02:51.6]} 10... O-O-O {[%clk 0:02:00.6]} 11. h3 {[%clk 0:02:49.9]}
11... Bxf3 {[%clk 0:01:54]} 12. Qxf3 {[%clk 0:02:51.8]} 12... Qg6 {[%clk
0:01:49.2]} 13. g4 {[%clk 0:02:43]} 13... Ne5 {[%clk 0:01:48.3]} 14. Bxe5 {[%clk
0:02:41]} 14... dxe5 {[%clk 0:01:49.3]} 15. Raf1 {[%clk 0:02:41.6]} 15... Rd7
{[%clk 0:01:19.2]} 16. Qf5 {[%clk 0:02:38.2]} 16... Rd8 {[%clk 0:01:11.2]} 17.
Qxg6 {[%clk 0:02:24.3]} 17... hxg6 {[%clk 0:01:09.6]} 18. g5 {[%clk 0:02:22.9]}
18... Nh7 {[%clk 0:01:10.9]} 19. Bxf7 {[%clk 0:02:18.2]} 19... Nxg5 {[%clk
0:01:12.2]} 20. Bxg6 {[%clk 0:02:19]} 20... Kb8 {[%clk 0:01:13.8]} 21. h4 {[%clk
0:02:18.3]} 21... Ne6 {[%clk 0:01:13.8]} 22. Bf5 {[%clk 0:02:19.4]} 22... Re7
{[%clk 0:01:15.1]} 23. Nd5 {[%clk 0:02:19.6]} 23... Ree8 {[%clk 0:01:16.2]} 24.
Bxe6 {[%clk 0:02:18.4]} 24... Rxe6 {[%clk 0:01:17.1]} 25. Rf7 {[%clk 0:02:19.2]}
25... c6 {[%clk 0:01:16.7]} 26. Ne3 {[%clk 0:02:19.3]} 26... Rg6 {[%clk
0:01:16.7]} 27. Rh2 {[%clk 0:02:12.3]} 27... Rg1 {[%clk 0:00:57.8]} 28. h5
{[%clk 0:02:12.2]} 28... Rh8 {[%clk 0:00:32.9]} 29. Nc4 {[%clk 0:02:02.2]} 29...
Rg5 {[%clk 0:00:30.4]} 30. Kc3 {[%clk 0:01:50]} 30... b6 {[%clk 0:00:19.8]} 31.
b4 {[%clk 0:01:46]} 31... Bd4+ {[%clk 0:00:20.2]} 32. Kb3 {[%clk 0:01:47]} 32...
Rgxh5 {[%clk 0:00:21.3]} 33. Rxh5 {[%clk 0:01:45.6]} 33... Rxh5 {[%clk
0:00:23.2]} 34. c3 {[%clk 0:01:43.5]} 34... Rh3 {[%clk 0:00:16.6]} 35. cxd4
{[%clk 0:01:42.4]} 35... Rxd3+ {[%clk 0:00:17.8]} 36. Kc2 {[%clk 0:01:41.3]}
36... Rxd4 {[%clk 0:00:19.3]} 37. Nxe5 {[%clk 0:01:42.6]} 37... Rxe4 {[%clk
0:00:19.3]} 38. Nxc6+ {[%clk 0:01:43.4]} 38... Kc8 {[%clk 0:00:20.8]} 39. Nxa7+
{[%clk 0:01:40.8]} 39... Kb8 {[%clk 0:00:22.4]} 40. Nc6+ {[%clk 0:01:41.4]}
40... Kc8 {[%clk 0:00:24]} 41. Kd3 {[%clk 0:01:38.8]} 41... Re6 {[%clk
0:00:22.3]} 42. b5 {[%clk 0:01:37.7]} 42... g5 {[%clk 0:00:23.2]} 43. a4 {[%clk
0:01:38.4]} 43... Rg6 {[%clk 0:00:23.3]} 44. Ne7+ {[%clk 0:01:38.4]} 44... Kd7
{[%clk 0:00:23.4]} 45. Nxg6+ {[%clk 0:01:39.3]} 45... Ke6 {[%clk 0:00:25.3]} 46.
Rb7 {[%clk 0:01:39.2]} 46... g4 {[%clk 0:00:26.9]} 47. Rxb6+ {[%clk 0:01:41.1]}
47... Kd5 {[%clk 0:00:28.3]} 48. a5 {[%clk 0:01:40.4]} 48... g3 {[%clk
0:00:30.2]} 49. Nf4+ {[%clk 0:01:35.9]} 49... Kc5 {[%clk 0:00:31]} 50. Kc3
{[%clk 0:01:29.1]} 50... g2 {[%clk 0:00:32.4]} 51. Nxg2 {[%clk 0:01:30.3]} 51...
Kd5 {[%clk 0:00:33.7]} 52. a6 {[%clk 0:01:30.3]} 52... Kc5 {[%clk 0:00:35.6]}
53. Rb7 {[%clk 0:01:31.5]} 53... Kd6 {[%clk 0:00:36.7]} 54. a7 {[%clk
0:01:33.4]} 54... Kc5 {[%clk 0:00:38.6]} 55. a8=Q {[%clk 0:01:34.4]} 55... Kd6
{[%clk 0:00:40.5]} 56. Qc8 {[%clk 0:01:34.5]} 56... Kd5 {[%clk 0:00:40.9]} 57.
Rd7+ {[%clk 0:01:35.6]} 57... Ke4 {[%clk 0:00:42.1]} 58. Qe8+ {[%clk 0:01:37.5]}
58... Kf3 {[%clk 0:00:44]} 59. Rf7+ {[%clk 0:01:38.7]} 59... Kg3 {[%clk
0:00:45.5]} 60. Qg8+ {[%clk 0:01:39.6]} 60... Kh2 {[%clk 0:00:47.4]} 61. Ne1
{[%clk 0:01:40.2]} 61... Kh1 {[%clk 0:00:48.3]} 62. Rh7# {[%clk 0:01:42.1]} 1-0

[Event "*** Titled Tuesday Blitz"]
[Site "Chess.com"]
[Date "2019.07.02"]
[Round "4"]
[White "Alopekos"]
[Black "KL31"]
[Result "1-0"]
[WhiteElo "2455"]
[BlackElo "2205"]
[TimeControl "180+2"]
[EndTime "13:52:22 PDT"]
[Termination "Alopekos won by resignation"]

1. e4 {[%clk 0:03:01.9]} 1... e6 {[%clk 0:03:00.8]} 2. d4 {[%clk 0:03:02.9]}
2... d5 {[%clk 0:03:02]} 3. Nc3 {[%clk 0:03:04.5]} 3... Nf6 {[%clk 0:03:02.1]}
4. e5 {[%clk 0:03:05.8]} 4... Nfd7 {[%clk 0:03:03.2]} 5. Qg4 {[%clk 0:03:07.4]}
5... c5 {[%clk 0:03:02.6]} 6. dxc5 {[%clk 0:03:09.3]} 6... Nxe5 {[%clk
0:03:00.5]} 7. Qg3 {[%clk 0:03:10.4]} 7... Ned7 {[%clk 0:02:54.6]} 8. Nb5 {[%clk
0:03:10.8]} 8... Na6 {[%clk 0:02:45.4]} 9. b4 {[%clk 0:02:29.9]} 9... Nxb4
{[%clk 0:02:40.4]} 10. Nc7+ {[%clk 0:02:15.5]} 10... Ke7 {[%clk 0:02:36.5]} 11.
Qd6+ {[%clk 0:02:16.3]} 11... Kf6 {[%clk 0:02:37.6]} 12. Bb2+ {[%clk 0:01:22.6]}
12... Kg6 {[%clk 0:02:27.8]} 13. Qg3+ {[%clk 0:01:20.1]} 13... Kh6 {[%clk
0:01:50.9]} 14. Qh3+ {[%clk 0:00:25.6]} 14... Kg6 {[%clk 0:01:50.5]} 15. Bd3+
{[%clk 0:00:23.7]} 15... Nxd3+ {[%clk 0:01:48.9]} 16. Qxd3+ {[%clk 0:00:25.6]}
16... f5 {[%clk 0:01:47.9]} 17. Nxa8 {[%clk 0:00:26.5]} 17... Nxc5 {[%clk
0:01:47.7]} 18. Qg3+ {[%clk 0:00:27.5]} 18... Kf7 {[%clk 0:01:48.6]} 19. Qc7+
{[%clk 0:00:22.4]} 19... Be7 {[%clk 0:01:35.5]} 20. Nf3 {[%clk 0:00:23.1]} 20...
Qxc7 {[%clk 0:01:23]} 21. Nxc7 {[%clk 0:00:23.1]} 21... a6 {[%clk 0:01:24.6]}
22. O-O {[%clk 0:00:06.5]} 22... Nd7 {[%clk 0:01:11.3]} 23. Ne5+ {[%clk
0:00:06]} 23... Nxe5 {[%clk 0:01:11.3]} 24. Bxe5 {[%clk 0:00:07.9]} 24... Bd7
{[%clk 0:01:12]} 25. Rfb1 {[%clk 0:00:04.3]} 25... b5 {[%clk 0:01:12]} 26. a4
{[%clk 0:00:05]} 26... bxa4 {[%clk 0:01:13]} 27. Nxa6 {[%clk 0:00:05.3]} 27...
Rc8 {[%clk 0:01:09.3]} 28. Rb7 {[%clk 0:00:05.8]} 28... Ke8 {[%clk 0:01:08.3]}
29. Nc7+ {[%clk 0:00:05.4]} 29... Kd8 {[%clk 0:01:05.8]} 30. g3 {[%clk
0:00:05.8]} 30... Bc6 {[%clk 0:00:57.2]} 31. Nxe6+ {[%clk 0:00:07]} 31... Ke8
{[%clk 0:00:55.4]} 32. Rc7 {[%clk 0:00:08.3]} 32... Rxc7 {[%clk 0:00:50.2]} 33.
Nxc7+ {[%clk 0:00:09.5]} 33... Kd7 {[%clk 0:00:52.1]} 34. Na6 {[%clk 0:00:08.1]}
34... a3 {[%clk 0:00:51.9]} 35. Bd4 {[%clk 0:00:08.1]} 35... Bb5 {[%clk
0:00:51.8]} 36. Nc5+ {[%clk 0:00:08.6]} 36... Kc6 {[%clk 0:00:52.7]} 37. Rxa3
{[%clk 0:00:06.3]} 37... Bxc5 {[%clk 0:00:53.5]} 38. Bxc5 {[%clk 0:00:08]} 38...
Kxc5 {[%clk 0:00:54.7]} 39. Ra7 {[%clk 0:00:09.7]} 39... g5 {[%clk 0:00:52.3]}
40. Rxh7 {[%clk 0:00:10.4]} 40... Ba4 {[%clk 0:00:52.7]} 41. h4 {[%clk
0:00:10.8]} 41... gxh4 {[%clk 0:00:53]} 42. gxh4 {[%clk 0:00:12.7]} 42... Bxc2
{[%clk 0:00:54.3]} 43. Rc7+ {[%clk 0:00:14.2]} 1-0

[Event "*** Titled Tuesday Blitz"]
[Site "Chess.com"]
[Date "2019.07.02"]
[Round "4"]
[White "3f32"]
[Black "Everyfishknows"]
[Result "1-0"]
[WhiteElo "2476"]
[BlackElo "2282"]
[TimeControl "180+2"]
[EndTime "13:52:27 PDT"]
[Termination "3f32 won on time"]

1. d4 {[%clk 0:03:01.9]} 1... Nf6 {[%clk 0:03:00.3]} 2. Nf3 {[%clk 0:03:00.7]}
2... e6 {[%clk 0:02:55.7]} 3. Bf4 {[%clk 0:02:58.7]} 3... d5 {[%clk 0:02:55.4]}
4. e3 {[%clk 0:02:58.9]} 4... Bd6 {[%clk 0:02:56.5]} 5. Bg3 {[%clk 0:02:59.1]}
5... O-O {[%clk 0:02:57.2]} 6. Nbd2 {[%clk 0:02:56.7]} 6... c5 {[%clk 0:02:52]}
7. c3 {[%clk 0:02:56.8]} 7... b6 {[%clk 0:02:42.9]} 8. Bd3 {[%clk 0:02:56.5]}
8... Ba6 {[%clk 0:02:39.3]} 9. Bc2 {[%clk 0:02:52.2]} 9... Nc6 {[%clk
0:02:31.9]} 10. Ne5 {[%clk 0:02:48]} 10... Qc7 {[%clk 0:02:20.9]} 11. f4 {[%clk
0:02:37.6]} 11... cxd4 {[%clk 0:02:15.5]} 12. exd4 {[%clk 0:02:33.9]} 12... Rac8
{[%clk 0:02:13.1]} 13. Rc1 {[%clk 0:02:32.5]} 13... Ne7 {[%clk 0:01:50.1]} 14.
Bh4 {[%clk 0:02:17.1]} 14... Nf5 {[%clk 0:01:36.1]} 15. Bxf5 {[%clk 0:01:46.2]}
15... exf5 {[%clk 0:01:37]} 16. Qa4 {[%clk 0:01:34.5]} 16... Qb7 {[%clk
0:01:06.3]} 17. Bxf6 {[%clk 0:01:17.3]} 17... gxf6 {[%clk 0:01:06.8]} 18. Nef3
{[%clk 0:01:09.5]} 18... Bxf4 {[%clk 0:00:43.7]} 19. Kf2 {[%clk 0:01:10.2]}
19... Rfe8 {[%clk 0:00:30.3]} 20. Rhe1 {[%clk 0:01:07]} 20... Rxe1 {[%clk
0:00:21.9]} 21. Rxe1 {[%clk 0:01:06.7]} 21... Bd3 {[%clk 0:00:14.2]} 22. Re8+
{[%clk 0:00:53.5]} 22... Rxe8 {[%clk 0:00:10.6]} 23. Qxe8+ {[%clk 0:00:55.4]}
23... Kg7 {[%clk 0:00:12.2]} 24. g3 {[%clk 0:00:55.5]} 24... Bh6 {[%clk
0:00:06.6]} 25. Nf1 {[%clk 0:00:54.2]} 25... Be4 {[%clk 0:00:06]} 26. Nh4 {[%clk
0:00:55.3]} 26... Qa6 {[%clk 0:00:05]} 27. g4 {[%clk 0:00:46.7]} 27... Qd3
{[%clk 0:00:04.5]} 28. Nxf5+ {[%clk 0:00:45.3]} 28... Bxf5 {[%clk 0:00:05.3]}
29. gxf5 {[%clk 0:00:46.6]} 29... Qxf5+ {[%clk 0:00:06.2]} 30. Kg1 {[%clk
0:00:47.3]} 30... Qg4+ {[%clk 0:00:06.9]} 31. Ng3 {[%clk 0:00:47.3]} 31... Qd1+
{[%clk 0:00:07.1]} 32. Kf2 {[%clk 0:00:48.3]} 32... Qd2+ {[%clk 0:00:06.4]} 33.
Kf3 {[%clk 0:00:38.4]} 33... Qf4+ {[%clk 0:00:04.3]} 34. Kg2 {[%clk 0:00:39.3]}
34... Qd2+ {[%clk 0:00:05.3]} 35. Kh3 {[%clk 0:00:40.4]} 35... Qc2 {[%clk
0:00:03.3]} 36. Qd7 {[%clk 0:00:35.7]} 36... Qg6 {[%clk 0:00:02.5]} 37. Qxd5
{[%clk 0:00:35]} 37... Bf4 {[%clk 0:00:03.4]} 38. Nf5+ {[%clk 0:00:35.2]} 1-0

[Event "*** Titled Tuesday Blitz"]
[Site "Chess.com"]
[Date "2019.07.02"]
[Round "4"]
[White "Pechen_Yeltsina"]
[Black "ckgchess"]
[Result "0-1"]
[WhiteElo "2678"]
[BlackElo "2694"]
[TimeControl "180+2"]
[EndTime "13:52:28 PDT"]
[Termination "ckgchess won by checkmate"]

1. e4 {[%clk 0:03:01.9]} 1... c5 {[%clk 0:02:59.9]} 2. Nf3 {[%clk 0:03:02.3]}
2... d6 {[%clk 0:03:00.8]} 3. g3 {[%clk 0:03:03.1]} 3... Nf6 {[%clk 0:03:00.5]}
4. d3 {[%clk 0:03:03.2]} 4... Nc6 {[%clk 0:02:59.5]} 5. Bg2 {[%clk 0:03:04.1]}
5... g6 {[%clk 0:03:00.4]} 6. O-O {[%clk 0:03:05.6]} 6... Bg7 {[%clk 0:03:01.9]}
7. Re1 {[%clk 0:03:07.1]} 7... O-O {[%clk 0:03:02.6]} 8. c3 {[%clk 0:03:08.5]}
8... e5 {[%clk 0:02:51.6]} 9. a3 {[%clk 0:03:08.1]} 9... a5 {[%clk 0:02:50.9]}
10. a4 {[%clk 0:03:08.9]} 10... Be6 {[%clk 0:02:32.8]} 11. Na3 {[%clk
0:03:03.9]} 11... h6 {[%clk 0:02:33.8]} 12. Nd2 {[%clk 0:02:59]} 12... d5 {[%clk
0:02:28.8]} 13. Nb5 {[%clk 0:02:54.2]} 13... d4 {[%clk 0:02:24]} 14. Nc4 {[%clk
0:02:39]} 14... Ne8 {[%clk 0:02:12.3]} 15. cxd4 {[%clk 0:02:35.1]} 15... cxd4
{[%clk 0:02:13]} 16. b3 {[%clk 0:02:28.8]} 16... Nc7 {[%clk 0:01:59.4]} 17. Ba3
{[%clk 0:02:15]} 17... Nb4 {[%clk 0:01:59.7]} 18. Qd2 {[%clk 0:02:01.6]} 18...
Nca6 {[%clk 0:01:45.4]} 19. Rac1 {[%clk 0:01:58.4]} 19... b6 {[%clk 0:01:43.1]}
20. f4 {[%clk 0:01:53.5]} 20... exf4 {[%clk 0:01:40.9]} 21. gxf4 {[%clk
0:01:53.5]} 21... Rb8 {[%clk 0:01:37.7]} 22. Nbd6 {[%clk 0:01:32.5]} 22... Nc5
{[%clk 0:01:36.9]} 23. Bxb4 {[%clk 0:01:19.7]} 23... axb4 {[%clk 0:01:30.4]} 24.
Rb1 {[%clk 0:01:14.2]} 24... Qh4 {[%clk 0:01:24.4]} 25. f5 {[%clk 0:01:06.1]}
25... Bxc4 {[%clk 0:01:12.3]} 26. Nxc4 {[%clk 0:01:08]} 26... gxf5 {[%clk
0:01:10.9]} 27. exf5 {[%clk 0:01:09.9]} 27... Bf6 {[%clk 0:01:09.1]} 28. Be4
{[%clk 0:00:59.8]} 28... Kh8 {[%clk 0:01:06.9]} 29. Kh1 {[%clk 0:00:46.2]} 29...
Rg8 {[%clk 0:01:07.9]} 30. Re2 {[%clk 0:00:47]} 30... Rbe8 {[%clk 0:00:40.8]}
31. Rg1 {[%clk 0:00:36.1]} 31... Rxg1+ {[%clk 0:00:39.5]} 32. Kxg1 {[%clk
0:00:36.8]} 32... Bg5 {[%clk 0:00:38.4]} 33. Qb2 {[%clk 0:00:28.2]} 33... Nxe4
{[%clk 0:00:33.8]} 34. Qxd4+ {[%clk 0:00:23]} 34... Bf6 {[%clk 0:00:31.9]} 35.
Qd7 {[%clk 0:00:08.1]} 35... Rg8+ {[%clk 0:00:31]} 36. Kf1 {[%clk 0:00:05.8]}
36... Qf4+ {[%clk 0:00:29.5]} 37. Ke1 {[%clk 0:00:05.8]} 37... Rg1# {[%clk
0:00:30]} 0-1

[Event "*** Titled Tuesday Blitz"]
[Site "Chess.com"]
[Date "2019.07.02"]
[Round "4"]
[White "narutosmith"]
[Black "HanSchut"]
[Result "1-0"]
[WhiteElo "2205"]
[BlackElo "2214"]
[TimeControl "180+2"]
[EndTime "13:52:28 PDT"]
[Termination "narutosmith won by resignation"]

1. d4 {[%clk 0:03:01.9]} 1... Nf6 {[%clk 0:03:00.2]} 2. c4 {[%clk 0:03:02.7]}
2... g6 {[%clk 0:03:01.6]} 3. Nc3 {[%clk 0:03:03.1]} 3... d5 {[%clk 0:03:03.2]}
4. e3 {[%clk 0:03:02.9]} 4... Bg7 {[%clk 0:03:03.9]} 5. Qb3 {[%clk 0:03:04.2]}
5... dxc4 {[%clk 0:03:04.6]} 6. Bxc4 {[%clk 0:03:05.5]} 6... O-O {[%clk
0:03:04]} 7. Nf3 {[%clk 0:03:06.7]} 7... c5 {[%clk 0:03:04.7]} 8. dxc5 {[%clk
0:03:03.4]} 8... Nfd7 {[%clk 0:03:01.7]} 9. Ne4 {[%clk 0:02:45.2]} 9... Nxc5
{[%clk 0:02:40.9]} 10. Nxc5 {[%clk 0:02:45.3]} 10... Qa5+ {[%clk 0:02:42.4]} 11.
Bd2 {[%clk 0:02:46.3]} 11... Qxc5 {[%clk 0:02:42.6]} 12. Bb4 {[%clk 0:02:44.1]}
12... Qc7 {[%clk 0:02:42.2]} 13. O-O {[%clk 0:02:40.9]} 13... Nc6 {[%clk
0:02:42.9]} 14. Rac1 {[%clk 0:02:38.7]} 14... Bg4 {[%clk 0:02:29.4]} 15. Ng5
{[%clk 0:02:33.8]} 15... e6 {[%clk 0:02:21.5]} 16. h3 {[%clk 0:02:29.6]} 16...
h6 {[%clk 0:02:21.6]} 17. Nxf7 {[%clk 0:02:18]} 17... Bxh3 {[%clk 0:02:05.6]}
18. Bxf8 {[%clk 0:02:15.6]} 18... Rxf8 {[%clk 0:01:50.6]} 19. Nxh6+ {[%clk
0:02:10.1]} 19... Bxh6 {[%clk 0:01:51.3]} 20. gxh3 {[%clk 0:02:09]} 20... Qe7
{[%clk 0:01:37.8]} 21. Bxe6+ {[%clk 0:02:07.2]} 21... Kh7 {[%clk 0:01:37.3]} 22.
Bg4 {[%clk 0:01:54.9]} 22... Ne5 {[%clk 0:01:23.5]} 23. Qe6 {[%clk 0:01:51.8]}
23... Nf3+ {[%clk 0:01:18.2]} 24. Kg2 {[%clk 0:01:14.1]} 24... Qg5 {[%clk
0:00:52.3]} 25. Rc7+ {[%clk 0:01:07.8]} 25... Bg7 {[%clk 0:00:52.9]} 26. Qd7
{[%clk 0:00:55]} 26... Nh4+ {[%clk 0:00:49.5]} 27. Kh1 {[%clk 0:00:30.7]} 27...
Rg8 {[%clk 0:00:46.5]} 28. Rxb7 {[%clk 0:00:21.7]} 28... Qe5 {[%clk 0:00:42.4]}
29. Qd4 {[%clk 0:00:12]} 29... Qg5 {[%clk 0:00:17.8]} 30. Rd1 {[%clk 0:00:10.8]}
30... Kh6 {[%clk 0:00:18.6]} 31. Qf4 {[%clk 0:00:10.9]} 31... Qxf4 {[%clk
0:00:13.3]} 32. exf4 {[%clk 0:00:12.8]} 32... Rf8 {[%clk 0:00:13.2]} 33. Rdd7
{[%clk 0:00:13.8]} 33... Rg8 {[%clk 0:00:11.4]} 34. Be6 {[%clk 0:00:13.8]} 34...
Nf5 {[%clk 0:00:08.4]} 35. Bxg8 {[%clk 0:00:14]} 1-0

[Event "*** Titled Tuesday Blitz"]
[Site "Chess.com"]
[Date "2019.07.02"]
[Round "4"]
[White "HZMC92"]
[Black "DoHoChess"]
[Result "0-1"]
[WhiteElo "2363"]
[BlackElo "2554"]
[TimeControl "180+2"]
[EndTime "13:52:37 PDT"]
[Termination "DoHoChess won by resignation"]

1. d4 {[%clk 0:03:01.9]} 1... d5 {[%clk 0:02:59.6]} 2. c4 {[%clk 0:03:02.9]}
2... e6 {[%clk 0:02:58.2]} 3. Nc3 {[%clk 0:03:03.7]} 3... a6 {[%clk 0:02:50]} 4.
cxd5 {[%clk 0:03:03.9]} 4... exd5 {[%clk 0:02:51.9]} 5. Nf3 {[%clk 0:03:04.6]}
5... Nf6 {[%clk 0:02:52.2]} 6. Bg5 {[%clk 0:03:04.3]} 6... Be6 {[%clk
0:02:53.1]} 7. e3 {[%clk 0:03:02]} 7... h6 {[%clk 0:02:54.2]} 8. Bh4 {[%clk
0:03:02.8]} 8... Nbd7 {[%clk 0:02:55.3]} 9. Bd3 {[%clk 0:03:03.8]} 9... g5
{[%clk 0:02:56.7]} 10. Bg3 {[%clk 0:03:04.7]} 10... Nh5 {[%clk 0:02:58.4]} 11.
Qb3 {[%clk 0:02:59.6]} 11... Nxg3 {[%clk 0:02:56.1]} 12. hxg3 {[%clk 0:02:58.7]}
12... Nb6 {[%clk 0:02:57.4]} 13. a3 {[%clk 0:02:46.1]} 13... Bd6 {[%clk
0:02:51.5]} 14. Qc2 {[%clk 0:02:42.5]} 14... Qf6 {[%clk 0:02:46.7]} 15. Na4
{[%clk 0:02:39.8]} 15... Nxa4 {[%clk 0:02:43.3]} 16. Qxa4+ {[%clk 0:02:41.7]}
16... c6 {[%clk 0:02:42.9]} 17. Qc2 {[%clk 0:02:33.9]} 17... h5 {[%clk
0:02:36.5]} 18. O-O-O {[%clk 0:02:24.8]} 18... h4 {[%clk 0:02:35.3]} 19. gxh4
{[%clk 0:02:22.4]} 19... gxh4 {[%clk 0:02:37.2]} 20. Kb1 {[%clk 0:02:21.6]}
20... h3 {[%clk 0:02:30.7]} 21. Ne5 {[%clk 0:02:10.7]} 21... hxg2 {[%clk
0:02:13.4]} 22. Rxh8+ {[%clk 0:02:11.5]} 22... Qxh8 {[%clk 0:02:15.3]} 23. Rg1
{[%clk 0:02:12.9]} 23... Bxe5 {[%clk 0:01:59.9]} 24. dxe5 {[%clk 0:02:13.8]}
24... Qxe5 {[%clk 0:02:01.8]} 25. Rxg2 {[%clk 0:02:12.9]} 25... O-O-O {[%clk
0:02:02.4]} 26. Rg1 {[%clk 0:01:30.5]} 26... Rh8 {[%clk 0:01:58.9]} 27. Bxa6
{[%clk 0:01:25.1]} 27... bxa6 {[%clk 0:01:42.6]} 28. Qxc6+ {[%clk 0:01:25.3]}
28... Qc7 {[%clk 0:01:34]} 29. Qxa6+ {[%clk 0:01:25.1]} 29... Kd7 {[%clk
0:01:30.4]} 30. Qa4+ {[%clk 0:01:15.8]} 30... Ke7 {[%clk 0:01:26.3]} 31. Qd4
{[%clk 0:01:10.7]} 31... Rb8 {[%clk 0:01:22.3]} 32. Qh4+ {[%clk 0:00:58.9]}
32... Kd7 {[%clk 0:01:21.8]} 33. Qd4 {[%clk 0:00:53.2]} 33... Bf5+ {[%clk
0:01:09]} 34. Ka1 {[%clk 0:00:52.9]} 34... Be6 {[%clk 0:01:04.4]} 35. f4 {[%clk
0:00:43]} 35... Qb6 {[%clk 0:01:01.4]} 36. Qd2 {[%clk 0:00:39.7]} 36... Ke7
{[%clk 0:00:54.1]} 37. f5 {[%clk 0:00:35.5]} 37... Bxf5 {[%clk 0:00:53.4]} 38.
e4 {[%clk 0:00:32.3]} 38... dxe4 {[%clk 0:00:49.7]} 39. Rd1 {[%clk 0:00:25.1]}
39... Qf6 {[%clk 0:00:41.5]} 40. Qc2 {[%clk 0:00:19.9]} 40... Kf8 {[%clk
0:00:37.4]} 41. Qc5+ {[%clk 0:00:19.8]} 41... Kg7 {[%clk 0:00:36.9]} 42. Rg1+
{[%clk 0:00:20.5]} 42... Bg6 {[%clk 0:00:37.9]} 43. Qc2 {[%clk 0:00:21.4]} 0-1